bitfinex/quotes_SOLUSD_20220109
["timestamp","ask_amount","ask_price","bid_price","bid_amount"]
[1641687438837,3.0,142.31,142.15,32.9667]
[1641687439042,3.0,142.31,142.14,147.8261]
[1641687439043,8.96,142.3,142.13,263.5]
[1641687439242,29.25222107,142.29,142.13,263.5]
[1641687439439,10.5531,142.21,142.13,263.5]
[1641687439639,10.5531,142.21,142.13,94.7]
[1641687439838,0.51,142.2,142.13,94.7]
[1641687440239,0.51,142.2,142.11,19.003]
[1641687440438,0.25,142.2,142.11,8.45]
[1641687440638,35.1861,142.18,142.08,79.2682]
[1641687440840,40.6671,142.18,142.05,31.0502]
[1641687441043,31.07178494,142.17,142.06,19.24147668]
[1641687441244,31.07178494,142.17,142.05,22.6002]
[1641687441445,31.07178494,142.17,142.02,3.52909699]
[1641687441646,31.07178494,142.17,142.01,103.15]
[1641687441647,35.1998,142.12,142.01,103.15]
[1641687441843,1.65345313,142.16,142.01,103.15]
[1641687442043,0.26,142.11,142.01,103.15]
[1641687442243,0.26,142.11,142.02,22.55124098]
[1641687442645,10.559,142.1,142.03,10.5587]
[1641687443043,10.559,142.1,142.02,22.55124098]
[1641687443243,10.559,142.1,142.01,103.15]
[1641687443244,0.0001,142.1,142.01,103.15]
[1641687443446,0.0001,142.1,142.02,3.0]
[1641687443945,10.5591,142.1,142.03,0.25]
[1641687444145,10.5591,142.1,142.03,0.51]
[1641687444344,10.5591,142.1,142.03,23.40451294]
[1641687444544,10.5591,142.1,142.03,0.51]
[1641687445246,35.1911,142.15,142.03,8.96]
[1641687445449,8.45,142.21,142.03,19.78984264]
[1641687445648,8.45,142.21,142.04,3.0]
[1641687445848,3.0,142.2,142.05,8.45]
[1641687446051,27.47635293,142.19,142.06,23.02470158]
[1641687446447,10.5561,142.15,142.07,11.0658]
[1641687446650,35.92635293,142.19,142.03,8.45]
[1641687447049,3.0,142.18,142.03,8.45]
[1641687447249,11.45,142.18,142.03,8.45]
[1641687447650,11.45,142.18,142.04,19.65320387]
[1641687447848,10.5577,142.13,142.04,19.65320387]
[1641687448048,10.5577,142.13,142.05,0.51]
[1641687448953,40.97490353,142.13,142.05,0.51]
[1641687449149,40.97490353,142.13,142.04,0.51]
[1641687450350,0.25,142.12,142.03,8.45]
[1641687450552,11.0689,142.12,142.03,8.45]
[1641687451253,11.0689,142.12,142.01,47.3271]
[1641687451474,11.0689,142.12,142.0,8.45]
[1641687451671,11.0689,142.12,142.01,3.0]
[1641687451875,13.5595,142.11,142.02,10.5595]
[1641687452076,29.53027732,142.1,142.01,3.0]
[1641687452274,29.79027732,142.1,142.01,3.0]
[1641687452475,29.79027732,142.1,142.02,0.25]
[1641687452774,0.26,142.1,142.02,0.25]
[1641687452976,10.5607,142.09,142.02,0.25]
[1641687453374,10.5607,142.09,142.01,3.26]
[1641687453575,35.2023,142.13,142.01,3.26]
[1641687453777,35.2157,142.08,142.02,8.45]
[1641687453975,10.5664,142.05,142.02,8.45]
[1641687454174,10.5664,142.05,142.03,6.06437095]
[1641687454978,10.564,142.07,142.03,6.06437095]
[1641687456880,27.86547589,142.06,142.03,6.06437095]
[1641687457078,10.5656,142.05,141.98,8.45]
[1641687457980,0.26,142.04,141.98,8.45]
[1641687458378,10.5656,142.05,141.99,0.25]
[1641687459282,27.35547589,142.06,141.98,8.45]
[1641687459689,10.5641,142.07,141.98,8.45]
[1641687459888,10.5641,142.07,141.99,0.26]
[1641687460089,35.2134,142.1,141.99,0.26]
[1641687460090,8.45,142.14,141.99,3.26]
[1641687460292,119.7361,142.18,142.0,8.45]
[1641687460495,13.5578,142.16,142.01,3.0]
[1641687460788,24.3897204,142.15,142.02,28.9993622]
[1641687460988,3.0,142.14,142.03,3.25]
[1641687461192,33.3209,142.23,142.04,8.45]
[1641687461491,33.3209,142.23,142.07,10.5551]
[1641687461492,10.5563,142.18,142.07,10.5551]
[1641687461690,0.26,142.22,142.08,8.45]
[1641687461890,33.3209,142.23,142.09,8.96]
[1641687462093,31.14546374,142.22,142.1,9.03296588]
[1641687462290,31.14546374,142.22,142.11,8.45]
[1641687462490,31.14546374,142.22,142.12,13.8018]
[1641687462895,31.14546374,142.22,142.13,0.26]
[1641687463290,72.5352,142.29,142.13,0.26]
[1641687463291,83.0515,142.3,142.14,8.45]
[1641687463494,3.0,142.29,142.15,3.51]
[1641687463692,10.5498,142.26,142.15,14.0598]
[1641687463892,3.0,142.29,142.15,14.0598]
[1641687464193,3.0,142.29,142.16,8.45]
[1641687464391,24.34851768,142.28,142.17,0.51]
[1641687464594,12.19855313,142.33,142.21,10.5447]
[1641687464791,12.19855313,142.33,142.17,38.6604]
[1641687464792,76.26507228,142.36,142.22,8.45]
[1641687464996,1.71877228,142.36,142.23,3.51]
[1641687465198,1.71877228,142.36,142.24,8.45]
[1641687465395,1.71877228,142.39,142.25,0.51]
[1641687465597,30.24737557,142.38,142.26,28.9993622]
[1641687465797,30.24737557,142.38,142.27,35.1255]
[1641687465997,30.24737557,142.38,142.27,0.26]
[1641687466396,3.0,142.37,142.27,0.51]
[1641687466798,3.0,142.37,142.27,0.25]
[1641687466999,3.0,142.37,142.28,10.5396]
[1641687467199,3.0,142.37,142.27,0.25]
[1641687467400,3.0,142.37,142.27,3.51]
[1641687467599,3.0,142.37,142.24,8.45]
[1641687467797,1.65345313,142.36,142.22,8.45]
[1641687467998,1.65345313,142.36,142.23,3.0]
[1641687467999,3.0,142.35,142.23,3.0]
[1641687468198,10.5497,142.29,142.22,8.45]
[1641687468498,0.25,142.28,142.22,8.45]
[1641687468696,10.5497,142.29,142.22,8.45]
[1641687468697,8.45,142.38,142.22,8.45]
[1641687468900,0.51,142.34,142.23,0.26]
[1641687469301,0.26,142.34,142.23,0.26]
[1641687469501,0.26,142.34,142.23,3.51]
[1641687469803,23.34746364,142.33,142.23,9.50784334]
[1641687470003,0.26,142.32,142.23,9.50784334]
[1641687470234,10.995,142.32,142.18,8.45]
[1641687470631,10.35345313,142.31,142.17,37.36798569]
[1641687470831,10.35345313,142.31,142.14,35.17179699]
[1641687470832,10.5582,142.24,142.14,23.1927]
[1641687471032,30.69659779,142.23,142.14,23.1927]
[1641687471231,30.94659779,142.23,142.14,23.1927]
[1641687471435,3.0,142.22,142.14,23.1927]
[1641687471632,3.0,142.22,142.12,10.40798569]
[1641687471834,10.5562,142.18,142.12,8.45]
[1641687472032,80.9445,142.31,142.13,3.0]
[1641687472232,72.4945,142.31,142.14,8.45]
[1641687472436,3.51,142.3,142.15,0.25]
[1641687472632,3.51,142.3,142.16,8.45]
[1641687472834,25.10820926,142.29,142.16,8.45]
[1641687473034,3.25,142.28,142.17,0.26]
[1641687473232,3.51,142.28,142.15,3.0]
[1641687473632,10.5522,142.24,142.14,8.7]
[1641687473837,0.25,142.23,142.11,8.45]
[1641687474035,3.51,142.23,142.11,8.45]
[1641687474635,28.54394013,142.22,142.11,19.0031]
[1641687474939,0.26,142.21,142.11,19.0031]
[1641687475135,0.26,142.21,142.12,0.25]
[1641687475336,0.51,142.21,142.12,0.25]
[1641687475536,0.51,142.21,142.12,0.51]
[1641687475736,11.45,142.27,142.13,3.00041349]
[1641687476036,0.26,142.26,142.14,3.51]
[1641687476236,8.45,142.29,142.14,3.51]
[1641687476434,8.45,142.29,142.14,0.51]
[1641687476435,0.25,142.26,142.14,0.51]
[1641687477037,27.9110038,142.27,142.14,0.51]
[1641687477540,3.0,142.26,142.14,0.51]
[1641687477738,3.26,142.26,142.14,0.25]
[1641687477936,3.26,142.26,142.13,11.45041349]
[1641687478336,0.25,142.25,142.13,11.45041349]
[1641687478537,0.25,142.25,142.13,8.45]
[1641687478741,10.5537,142.22,142.13,8.45]
[1641687478938,0.51,142.21,142.13,8.45]
[1641687479138,0.25,142.21,142.13,8.45]
[1641687479540,0.51,142.21,142.13,8.45]
[1641687479943,10.8041,142.21,142.13,8.45]
[1641687480343,10.8041,142.21,142.07,35.41]
[1641687480344,19.0091,142.21,142.07,8.45]
[1641687480543,11.45,142.2,142.06,1.95798569]
[1641687480945,10.5605,142.12,142.04,1.95798569]
[1641687481543,24.34516189,142.14,142.04,1.95798569]
[1641687481743,24.34516189,142.14,142.01,11.97909699]
[1641687481744,24.34516189,142.14,142.01,8.45]
[1641687481943,0.26,142.13,142.02,3.0]
[1641687482145,0.51,142.13,142.02,3.0]
[1641687482344,0.51,142.13,142.03,0.25]
[1641687482543,0.51,142.13,142.03,25.94605938]
[1641687482747,0.26,142.13,142.03,25.94605938]
[1641687483144,0.26,142.13,142.03,36.50485938]
[1641687483344,3.51,142.17,142.03,36.50485938]
[1641687483944,27.33485935,142.16,142.03,36.50485938]
[1641687484145,10.5589,142.14,142.03,36.50485938]
[1641687484344,3.51,142.15,142.03,36.50485938]
[1641687484546,0.26,142.15,142.04,3.0]
[1641687484745,3.0,142.14,142.05,0.26]
[1641687484945,8.45,142.21,142.05,8.96]
[1641687485145,3.0,142.17,142.05,8.96]
[1641687485349,3.0,142.17,142.06,4.65345313]
[1641687485548,3.0,142.17,142.07,8.45]
[1641687485847,8.45,142.25,142.12,10.5525]
[1641687485848,31.56891179,142.18,142.12,10.5525]
[1641687486146,3.0,142.17,142.12,10.5525]
[1641687486347,3.0,142.17,142.13,0.26]
[1641687487146,31.56891179,142.18,142.13,0.26]
[1641687487547,10.553,142.22,142.11,10.5531]
[1641687487747,88.1083,142.25,142.12,0.51]
[1641687487948,3.0,142.21,142.12,0.25]
[1641687488246,88.1083,142.25,142.12,0.25]
[1641687488447,3.0,142.24,142.12,0.25]
[1641687488648,30.83724684,142.23,142.12,0.25]
[1641687488847,31.09724684,142.23,142.11,0.51]
[1641687489047,3.0,142.22,142.11,0.51]
[1641687489246,3.0,142.22,142.13,10.5515]
[1641687489447,0.26,142.21,142.13,10.5515]
[1641687489849,0.26,142.21,142.14,0.25]
[1641687490047,0.26,142.22,142.14,0.25]
[1641687490449,0.51,142.22,142.14,10.8008]
[1641687490650,0.25,142.22,142.14,10.8008]
[1641687491553,0.25,142.22,142.16,10.5492]
[1641687491949,0.25,142.22,142.14,0.25]
[1641687492149,0.25,142.22,142.13,3.51]
[1641687492350,0.25,142.22,142.13,0.51]
[1641687492551,11.0626,142.22,142.09,87.02098569]
[1641687492749,14.0626,142.22,142.09,10.40798569]
[1641687492950,8.45,142.21,142.1,1.95798569]
[1641687493152,16.302,142.21,142.1,1.95798569]
[1641687493350,23.52672199,142.19,142.1,1.95798569]
[1641687493649,23.52672199,142.19,142.05,1.95798569]
[1641687493650,10.559,142.15,142.05,1.95798569]
[1641687493850,15.963,142.15,142.05,1.95798569]
[1641687494052,3.51,142.14,142.05,1.95798569]
[1641687494649,10.5615,142.1,142.01,1.95798569]
[1641687494849,27.64342229,142.09,142.01,1.95798569]
[1641687495056,31.15342229,142.09,142.01,1.95798569]
[1641687495851,10.5631,142.08,141.98,10.5629]
[1641687496052,3.26,142.09,141.99,0.25]
[1641687496256,0.26,142.09,141.99,3.25]
[1641687496451,0.25,142.14,142.0,0.25]
[1641687496651,3.25,142.14,142.0,0.25]
[1641687496853,13.8085,142.14,142.0,1.90345313]
[1641687497052,0.25,142.14,142.01,3.0]
[1641687497251,0.25,142.14,142.02,35.1895]
[1641687497450,0.25,142.14,142.03,0.26]
[1641687497651,0.25,142.15,142.03,3.26]
[1641687497852,10.5585,142.14,142.03,3.26]
[1641687498051,26.6916869,142.13,142.03,0.26]
[1641687498253,27.2016869,142.13,142.03,10.819]
[1641687498451,27.2016869,142.13,142.03,10.559]
[1641687498951,3.0,142.13,142.04,0.51]
[1641687499351,3.0,142.14,142.04,0.51]
[1641687499551,3.25,142.14,142.04,10.8083]
[1641687499752,3.25,142.14,142.04,16.22386714]
[1641687499953,0.25,142.14,142.05,0.26]
[1641687500153,3.0,142.13,142.05,0.26]
[1641687500351,0.25,142.12,142.03,0.25]
[1641687500554,0.51,142.12,142.03,10.8093]
[1641687501055,0.51,142.12,142.02,1.95798569]
[1641687501254,30.01510425,142.11,142.02,1.95798569]
[1641687501454,0.51,142.1,142.02,1.95798569]
[1641687501753,3.51,142.1,142.0,1.45798569]
[1641687501954,3.51,142.1,142.02,10.5599]
[1641687502453,3.51,142.1,142.0,1.45798569]
[1641687502655,11.96,142.1,142.0,1.45798569]
[1641687503054,22.5212,142.1,142.0,1.45798569]
[1641687503254,22.5212,142.1,141.97,10.5637]
[1641687503881,22.5212,142.1,141.94,35.41]
[1641687504254,22.5212,142.1,141.93,8.45]
[1641687505654,22.5212,142.1,141.9,139.12780114]
[1641687505655,22.5212,142.1,141.9,3.52909699]
[1641687505859,149.73200929,142.1,141.9,3.52909699]
[1641687506056,70.22,142.09,141.9,3.52909699]
[1641687506268,10.5718,141.99,141.9,3.52909699]
[1641687506455,8.96,141.98,141.9,3.52909699]
[1641687506655,22.60451263,141.97,141.9,3.52909699]
[1641687506855,31.05451263,141.97,141.88,35.41]
[1641687507155,3.51,141.96,141.88,60.16564703]
[1641687507356,10.821,141.96,141.84,3.52909699]
[1641687507559,8.45,141.97,141.85,0.25]
[1641687507757,8.45,141.97,141.84,5.18255012]
[1641687508160,8.45,142.0,141.89,10.5696]
[1641687508360,8.45,142.0,141.9,5.83313089]
[1641687508561,8.45,142.04,141.9,7.48658402]
[1641687508760,31.4287,142.06,141.91,3.0]
[1641687508965,8.45,142.06,141.92,0.26]
[1641687509259,76.4028,142.11,142.01,10.5594]
[1641687509460,29.60122121,142.09,142.01,10.5594]
[1641687509659,29.60122121,142.09,141.95,8.45]
[1641687509860,8.45,142.08,141.94,150.6293]
[1641687510060,8.45,142.08,141.95,0.25]
[1641687510261,3.0,142.07,141.95,0.25]
[1641687510461,0.25,142.06,141.95,0.25]
[1641687510762,26.37929611,142.06,141.95,0.25]
[1641687510960,29.63929611,142.06,141.92,23.029]
[1641687511161,8.45,142.05,141.89,3.52909699]
[1641687511389,0.51,142.04,141.88,153.5144]
[1641687511593,10.5692,141.98,141.9,10.5689]
[1641687511990,26.06318714,141.97,141.87,11.97909699]
[1641687512289,26.06318714,141.97,141.85,35.41]
[1641687512488,0.25,141.96,141.86,0.25]
[1641687512690,0.25,141.96,141.85,3.25]
[1641687513091,0.25,141.96,141.85,3.01]
[1641687513290,10.5708,141.95,141.87,10.5706]
[1641687513490,0.26,141.94,141.87,10.5706]
[1641687513692,3.0,141.97,141.87,12.79336112]
[1641687513894,8.45,142.02,141.88,1.65345313]
[1641687514091,8.45,142.04,141.88,13.10345313]
[1641687514293,0.25,142.01,141.96,10.5639]
[1641687514492,0.25,142.01,141.89,0.51]
[1641687514694,0.25,142.01,141.89,0.26]
[1641687514894,0.25,142.01,141.87,25.39256112]
[1641687515099,26.61213954,142.0,141.89,0.26]
[1641687515496,31.4018707,141.97,141.9,10.5689]
[1641687515996,3.25,141.96,141.84,8.45]
[1641687516197,3.25,141.96,141.82,125.11509699]
[1641687516398,0.26,141.95,141.82,125.11509699]
[1641687516796,0.26,141.95,141.83,122.30898313]
[1641687517399,10.573,141.92,141.85,10.572]
[1641687517800,0.26,141.91,141.83,78.5228]
[1641687518002,0.26,141.91,141.84,3.0]
[1641687518302,10.8333,141.91,141.81,10.5756]
[1641687518501,0.25,141.9,141.81,10.5756]
[1641687518701,3.25,141.9,141.81,10.5756]
[1641687518901,26.47067323,141.89,141.78,34.64719699]
[1641687519101,26.47067323,141.89,141.78,26.19719699]
[1641687519299,10.5768,141.86,141.79,10.577]
[1641687519499,3.26,141.85,141.78,3.52909699]
[1641687519899,0.25,141.84,141.78,3.52909699]
[1641687520501,10.5807,141.81,141.78,3.52909699]
[1641687520903,31.74748301,141.8,141.73,3.52909699]
[1641687521112,34.74748301,141.8,141.73,3.52909699]
[1641687521904,34.74748301,141.8,141.69,8.45]
[1641687522102,34.74748301,141.8,141.69,28.45596696]
[1641687522304,45.32918301,141.8,141.71,0.25]
[1641687522502,45.32918301,141.8,141.71,3.25]
[1641687523803,45.32918301,141.8,141.71,13.833]
[1641687524205,14.0917,141.8,141.71,13.833]
[1641687524503,8.45,141.87,141.71,23.93645313]
[1641687524702,8.45,141.89,141.71,23.93645313]
[1641687524904,8.45,141.89,141.8,10.5721]
[1641687525302,25.61541465,141.88,141.8,10.5721]
[1641687525502,25.61541465,141.88,141.81,0.25]
[1641687525903,25.61541465,141.88,141.84,10.5728]
[1641687526905,25.61541465,141.88,141.83,35.2365]
[1641687526906,25.61541465,141.88,141.81,10.5754]
[1641687527108,25.61541465,141.88,141.73,8.45]
[1641687527307,0.25,141.87,141.74,3.0]
[1641687527503,3.25,141.87,141.74,3.0]
[1641687527904,3.25,141.87,141.73,24.69925118]
[1641687528105,0.25,141.87,141.73,24.69925118]
[1641687528305,0.26,141.86,141.74,1.65345313]
[1641687528503,0.26,141.87,141.75,3.0]
[1641687528908,0.51,141.87,141.76,0.26]
[1641687529106,10.5767,141.86,141.8,10.5759]
[1641687529307,0.51,141.87,141.76,0.51]
[1641687529511,3.51,141.87,141.75,0.51]
[1641687529707,0.51,141.87,141.76,4.8830769]
[1641687529908,0.51,141.87,141.77,0.25]
[1641687530137,0.51,141.87,141.81,10.5751]
[1641687530308,34.06541465,141.88,141.81,10.5751]
[1641687530507,34.06541465,141.88,141.82,0.25]
[1641687530508,25.61541465,141.88,141.82,0.25]
[1641687530810,25.61541465,141.88,141.75,34.39898311]
[1641687531108,25.61541465,141.88,141.76,3.25]
[1641687531313,0.25,141.87,141.76,3.51]
[1641687531508,0.25,141.87,141.82,10.5737]
[1641687532510,0.25,141.87,141.76,76.6672]
[1641687532708,3.51,141.87,141.76,76.4072]
[1641687533110,3.51,141.87,141.76,0.25]
[1641687533512,22.5353,141.87,141.73,45.9917]
[1641687533912,22.5353,141.87,141.73,10.5817]
[1641687534617,22.5353,141.87,141.7,27.60829699]
[1641687534816,24.18875313,141.87,141.7,3.52909699]
[1641687535015,24.18875313,141.87,141.71,3.0]
[1641687535622,24.18875313,141.87,141.7,3.0]
[1641687535820,24.18875313,141.87,141.7,13.8339]
[1641687536425,24.18875313,141.87,141.71,0.26]
[1641687536721,22.5353,141.87,141.71,0.26]
[1641687537522,24.18875313,141.87,141.72,10.5819]
[1641687537945,24.18875313,141.87,141.7,3.0]
[1641687538552,24.18875313,141.87,141.7,13.5839]
[1641687538952,36.24248706,141.87,141.7,13.5839]
[1641687539154,42.70333107,141.87,141.7,3.0]
[1641687540956,42.44333107,141.87,141.7,3.0]
[1641687541454,10.584,141.78,141.7,3.0]
[1641687541655,22.86856058,141.77,141.7,3.0]
[1641687541855,26.11856058,141.77,141.69,85.2934]
[1641687542063,25.86856058,141.77,141.67,8.45]
[1641687542360,22.86856058,141.77,141.69,0.25]
[1641687542656,0.25,141.76,141.67,35.41]
[1641687542859,3.25,141.76,141.67,35.41]
[1641687543261,4.90345313,141.76,141.67,35.41]
[1641687543459,0.26,141.75,141.67,35.41]
[1641687543658,24.63055324,141.7,141.67,35.41]
[1641687544060,0.51,141.69,141.67,35.41]
[1641687544260,0.26,141.69,141.63,86.9161]
[1641687544462,0.51,141.69,141.63,86.9161]
[1641687544863,11.0993,141.69,141.63,86.9161]
[1641687545060,11.0993,141.69,141.63,10.5887]
[1641687545562,8.45,141.75,141.64,2.25]
[1641687545761,3.0,141.76,141.64,2.25]
[1641687545966,8.45,141.78,141.65,0.26]
[1641687546167,0.51,141.75,141.63,0.26]
[1641687546565,0.25,141.75,141.63,0.26]
[1641687546763,0.25,141.75,141.69,10.5848]
[1641687547164,81.0021,141.8,141.69,10.5848]
[1641687547367,3.0,141.79,141.7,0.51]
[1641687547965,3.0,141.79,141.7,0.25]
[1641687548264,29.86801774,141.82,141.7,0.25]
[1641687548464,0.25,141.81,141.68,4.03909699]
[1641687548665,10.5803,141.8,141.74,10.581]
[1641687548895,29.86801774,141.82,141.71,57.86859278]
[1641687549067,29.86801774,141.82,141.75,0.26]
[1641687549666,40.44691774,141.82,141.76,10.5793]
[1641687549871,0.25,141.81,141.76,10.5793]
[1641687550267,29.86801774,141.82,141.76,10.5793]
[1641687550466,29.86801774,141.82,141.77,0.51]
[1641687550668,8.45,141.89,141.77,0.51]
[1641687550968,10.5774,141.84,141.78,10.5774]
[1641687551369,10.5774,141.84,141.79,0.26]
[1641687551566,26.14620387,141.87,141.79,0.51]
[1641687552169,26.14620387,141.87,141.79,0.25]
[1641687552369,36.72150387,141.87,141.81,10.5756]
[1641687552768,0.25,141.86,141.81,10.5756]
[1641687552968,0.51,141.86,141.81,10.5756]
[1641687553669,10.8263,141.86,141.8,10.5763]
[1641687553872,0.25,141.86,141.81,0.25]
[1641687554071,0.25,141.86,141.81,0.51]
[1641687554270,8.45,141.93,141.81,0.51]
[1641687554672,3.0,141.92,141.81,0.25]
[1641687554875,34.6544056,141.92,141.81,0.25]
[1641687555176,69.9013056,141.92,141.8,35.2446]
[1641687555373,78.3513056,141.92,141.8,35.2446]
[1641687555574,0.25,141.91,141.81,3.0]
[1641687555975,0.51,141.91,141.81,3.0]
[1641687556174,0.51,141.91,141.78,3.0]
[1641687556407,11.0825,141.91,141.83,10.5736]
[1641687556874,11.0825,141.91,141.79,0.26]
[1641687557076,3.0,141.9,141.79,0.26]
[1641687557477,0.51,141.89,141.79,0.26]
[1641687557874,0.25,141.89,141.79,0.26]
[1641687558275,0.25,141.89,141.79,0.51]
[1641687558476,3.0,141.89,141.79,0.51]
[1641687558674,10.5753,141.87,141.81,10.5753]
[1641687559075,0.26,141.86,141.81,10.5753]
[1641687559274,24.24321096,141.86,141.81,10.5753]
[1641687559877,0.25,141.85,141.81,10.5753]
[1641687560477,0.25,141.85,141.8,10.5758]
[1641687560676,10.8267,141.85,141.77,147.8479]
[1641687560878,10.8267,141.85,141.77,73.1677]
[1641687561177,0.26,141.84,141.77,73.1677]
[1641687561376,0.26,141.84,141.76,23.4376]
[1641687561582,0.26,141.84,141.78,10.5768]
[1641687562382,0.51,141.85,141.78,10.5768]
[1641687565817,11.0865,141.85,141.78,10.5768]
[1641687566017,10.8265,141.85,141.78,10.5768]
[1641687566316,8.45,141.9,141.79,0.25]
[1641687566518,10.3158,141.92,141.84,10.5721]
[1641687566817,8.45,141.95,141.84,17.1621]
[1641687567016,10.5706,141.93,141.85,0.25]
[1641687567216,24.20450454,141.92,141.85,0.25]
[1641687567818,3.25,141.91,141.85,0.25]
[1641687568018,3.0,141.91,141.85,0.25]
[1641687568221,3.0,141.91,141.82,0.25]
[1641687568417,24.20450454,141.92,141.82,0.25]
[1641687568618,34.77580454,141.92,141.85,10.5713]
[1641687568818,36.89115313,141.96,141.85,10.5713]
[1641687569018,1.65345313,141.98,141.86,0.51]
[1641687569221,78.671,141.99,141.86,0.26]
[1641687569421,78.671,141.99,141.85,3.51]
[1641687569620,78.671,141.99,141.85,11.96]
[1641687569823,39.79498557,142.02,141.86,22.99452883]
[1641687570022,39.79498557,142.02,141.87,3.26]
[1641687570225,39.79498557,142.02,141.87,11.96]
[1641687570923,3.25,142.01,141.87,11.96]
[1641687571224,10.5663,141.99,141.91,10.5663]
[1641687571423,3.0,142.01,141.91,10.5663]
[1641687571622,39.79498557,142.02,141.91,10.5663]
[1641687571822,3.0,142.01,141.87,86.6168]
[1641687572023,13.5656,142.0,141.92,10.566]
[1641687572222,10.5656,142.0,141.92,10.566]
[1641687572826,0.25,141.99,141.92,10.566]
[1641687573424,10.8164,141.99,141.93,0.25]
[1641687573724,10.8164,141.99,141.92,10.566]
[1641687574327,10.8164,141.99,141.91,10.5667]
[1641687574725,0.26,141.98,141.91,10.5667]
[1641687574926,10.8269,141.98,141.91,10.5667]
[1641687575331,0.25,141.97,141.91,10.5667]
[1641687575828,35.2207,142.03,141.92,14.41359925]
[1641687576030,10.5632,142.04,141.93,3.26]
[1641687576230,10.4371,142.11,141.94,8.45]
[1641687576231,8.45,142.1,141.94,8.45]
[1641687576428,8.45,142.1,141.95,0.26]
[1641687576830,28.06715326,142.07,141.95,3.26]
[1641687577029,38.62805326,142.07,141.95,3.26]
[1641687577328,0.25,142.06,141.96,0.25]
[1641687577528,0.25,142.06,141.96,7.606]
[1641687577728,0.25,142.06,141.97,3.26]
[1641687577931,0.51,142.06,141.98,0.25]
[1641687579429,0.51,142.06,142.01,10.5596]
[1641687579628,73.6608,142.11,142.01,10.5596]
[1641687579828,73.6608,142.11,142.02,0.51]
[1641687580030,3.0,142.1,142.02,0.51]
[1641687580436,3.0,142.1,141.99,3.51]
[1641687580634,28.20514576,142.11,141.99,38.7032]
[1641687580832,28.20514576,142.11,141.99,3.51]
[1641687581034,0.51,142.1,141.99,3.26]
[1641687581639,10.5601,142.08,142.0,10.5598]
[1641687582041,0.51,142.07,142.0,10.5598]
[1641687582441,0.51,142.07,141.99,0.26]
[1641687582670,0.25,142.07,141.99,0.26]
[1641687582840,10.8106,142.07,141.98,10.5613]
[1641687583045,3.0,142.06,141.92,33.26]
[1641687583240,3.0,142.06,141.9,8.45]
[1641687583241,8.45,142.05,141.9,8.45]
[1641687583441,0.51,142.04,141.88,23.1788]
[1641687583741,30.63996044,142.03,141.89,24.04898838]
[1641687583954,0.51,142.02,141.89,24.04898838]
[1641687584144,3.51,142.02,141.89,24.04898838]
[1641687584341,10.5649,142.01,141.93,10.5643]
[1641687584542,3.0,142.0,141.93,10.5643]
[1641687585344,10.8146,142.02,141.94,0.26]